[Event "Titled Tuesday Blitz March 22 Early 2022"]
[White "Babazada, Khazar"]
[Black "Koellner, Ruben Gideon"]
[WhiteFideId "13413554"]
[BlackFideId "12993093"]
[WhiteElo "2418"]
[BlackElo "2516"]
[Result "1-0"]
[Round "06"]
[TimeControl "180+1"]
[Date "2022.03.22"]
[WhiteClock "0:00:25"]
[BlackClock "0:00:03"]

1. e4 {[%clk 0:03:00]}  d6 {[%clk 0:03:00]} 2. d4 {[%clk 0:02:59]}  Nf6 {[%clk 0:03:00]} 3. Nc3 {[%clk 0:02:59]}  e5 {[%clk 0:03:00]} 4. Nf3 {[%clk 0:02:56]}  Nbd7 {[%clk 0:02:58]} 5. Bc4 {[%clk 0:02:54]}  Be7 {[%clk 0:02:58]} 6. O-O {[%clk 0:02:54]}  c6 {[%clk 0:02:58]} 7. a4 {[%clk 0:02:54]}  h6 {[%clk 0:02:58]} 8. a5 {[%clk 0:02:49]}  Qc7 {[%clk 0:02:57]} 9. h3 {[%clk 0:02:45]}  Nf8 {[%clk 0:02:56]} 10. b3 {[%clk 0:02:39]}  Ng6 {[%clk 0:02:53]} 11. Re1 {[%clk 0:02:22]}  O-O {[%clk 0:02:52]} 12. Bf1 {[%clk 0:02:07]}  Rd8 {[%clk 0:02:47]} 13. g3 {[%clk 0:02:03]}  Bf8 {[%clk 0:02:42]} 14. Bg2 {[%clk 0:01:57]}  Re8 {[%clk 0:02:27]} 15. Be3 {[%clk 0:01:57]}  Be6 {[%clk 0:02:23]} 16. Qd2 {[%clk 0:01:56]}  b5 {[%clk 0:02:06]} 17. d5 {[%clk 0:01:52]}  cxd5 {[%clk 0:02:05]} 18. exd5 {[%clk 0:01:16]}  Bd7 {[%clk 0:02:04]} 19. Nh2 {[%clk 0:01:16]}  Rec8 {[%clk 0:02:00]} 20. Na2 {[%clk 0:01:15]}  Qxc2 {[%clk 0:01:59]} 21. Qxc2 {[%clk 0:01:15]}  Rxc2 {[%clk 0:01:59]} 22. Nb4 {[%clk 0:01:16]}  Rc3 {[%clk 0:01:57]} 23. Nc6 {[%clk 0:01:14]}  a6 {[%clk 0:01:54]} 24. b4 {[%clk 0:00:51]}  Bxc6 {[%clk 0:01:51]} 25. dxc6 {[%clk 0:00:52]}  d5 {[%clk 0:01:52]} 26. Ng4 {[%clk 0:00:47]}  Nxg4 {[%clk 0:01:39]} 27. hxg4 {[%clk 0:00:48]}  d4 {[%clk 0:01:19]} 28. Bd2 {[%clk 0:00:45]}  Rc4 {[%clk 0:01:17]} 29. Rab1 {[%clk 0:00:37]}  Rc8 {[%clk 0:01:15]} 30. Bd5 {[%clk 0:00:38]}  Rc2 {[%clk 0:01:05]} 31. Red1 {[%clk 0:00:37]}  Ne7 {[%clk 0:01:03]} 32. Be4 {[%clk 0:00:36]}  Rc4 {[%clk 0:01:01]} 33. Rdc1 {[%clk 0:00:31]}  Nxc6 {[%clk 0:00:57]} 34. Bd5 {[%clk 0:00:30]}  Rxc1+ {[%clk 0:00:54]} 35. Rxc1 {[%clk 0:00:31]}  Ne7 {[%clk 0:00:55]} 36. Rxc8 {[%clk 0:00:28]}  Nxc8 {[%clk 0:00:55]} 37. Bb7 {[%clk 0:00:29]}  Nd6 {[%clk 0:00:55]} 38. Bxa6 {[%clk 0:00:27]}  f6 {[%clk 0:00:52]} 39. Bb7 {[%clk 0:00:27]}  Nxb7 {[%clk 0:00:17]} 40. a6 {[%clk 0:00:27]}  Nd6 {[%clk 0:00:18]} 41. a7 {[%clk 0:00:27]}  Nc4 {[%clk 0:00:19]} 42. a8=Q {[%clk 0:00:26]}  Nxd2 {[%clk 0:00:20]} 43. Qd5+ {[%clk 0:00:26]}  Kh7 {[%clk 0:00:18]} 44. Qxb5 {[%clk 0:00:25]}  Nf3+ {[%clk 0:00:03]} 45. Kh1 {[%clk 0:00:25]} 1-0


[Site "https://www.chess.com"]

[Event "Titled Tuesday Blitz March 22 Early 2022"]
[White "Baches Garcia, Guillermo"]
[Black "Brodowski, Piotr"]
[WhiteFideId "2209764"]
[BlackFideId "1124480"]
[WhiteElo "2468"]
[BlackElo "2422"]
[Result "0-1"]
[Round "06"]
[TimeControl "180+1"]
[Date "2022.03.22"]
[WhiteClock "0:00:09"]
[BlackClock "0:00:59"]

1. e4 {[%clk 0:03:00]}  c5 {[%clk 0:02:59]} 2. Nf3 {[%clk 0:03:01]}  d6 {[%clk 0:02:56]} 3. d4 {[%clk 0:03:01]}  cxd4 {[%clk 0:02:56]} 4. Qxd4 {[%clk 0:03:01]}  Nf6 {[%clk 0:02:57]} 5. Bb5+ {[%clk 0:03:00]}  Nc6 {[%clk 0:02:58]} 6. Qd3 {[%clk 0:02:55]}  Bd7 {[%clk 0:02:50]} 7. c4 {[%clk 0:02:55]}  g6 {[%clk 0:02:48]} 8. Nc3 {[%clk 0:02:55]}  Bg7 {[%clk 0:02:48]} 9. O-O {[%clk 0:02:55]}  O-O {[%clk 0:02:48]} 10. h3 {[%clk 0:02:55]}  Rc8 {[%clk 0:02:48]} 11. Be3 {[%clk 0:02:55]}  a6 {[%clk 0:02:47]} 12. Bxc6 {[%clk 0:02:54]}  Bxc6 {[%clk 0:02:47]} 13. Nd4 {[%clk 0:02:54]}  Nd7 {[%clk 0:02:47]} 14. Rac1 {[%clk 0:02:54]}  Nc5 {[%clk 0:02:40]} 15. Qc2 {[%clk 0:02:54]}  a5 {[%clk 0:02:39]} 16. Rfd1 {[%clk 0:02:52]}  Qd7 {[%clk 0:02:38]} 17. Ndb5 {[%clk 0:02:45]}  Bxb5 {[%clk 0:02:37]} 18. Nxb5 {[%clk 0:02:41]}  Qe6 {[%clk 0:02:37]} 19. Bxc5 {[%clk 0:02:18]}  Rxc5 {[%clk 0:02:36]} 20. b3 {[%clk 0:02:07]}  f5 {[%clk 0:02:32]} 21. exf5 {[%clk 0:02:05]}  Rcxf5 {[%clk 0:02:32]} 22. Rd2 {[%clk 0:01:26]}  Bh6 {[%clk 0:02:31]} 23. Nd4 {[%clk 0:01:26]}  Qf6 {[%clk 0:02:04]} 24. Nxf5 {[%clk 0:01:25]}  gxf5 {[%clk 0:02:05]} 25. Re1 {[%clk 0:01:15]}  Bxd2 {[%clk 0:02:04]} 26. Qxd2 {[%clk 0:01:16]}  f4 {[%clk 0:02:03]} 27. f3 {[%clk 0:01:12]}  Qg5 {[%clk 0:02:00]} 28. Re6 {[%clk 0:00:58]}  a4 {[%clk 0:01:58]} 29. Qe2 {[%clk 0:00:52]}  axb3 {[%clk 0:01:57]} 30. axb3 {[%clk 0:00:51]}  Kf7 {[%clk 0:01:55]} 31. Re4 {[%clk 0:00:46]}  e5 {[%clk 0:01:52]} 32. c5 {[%clk 0:00:46]}  Rc8 {[%clk 0:01:44]} 33. b4 {[%clk 0:00:39]}  Qd8 {[%clk 0:01:34]} 34. Kh2 {[%clk 0:00:31]}  Kf6 {[%clk 0:01:29]} 35. Qf2 {[%clk 0:00:27]}  Kf5 {[%clk 0:01:19]} 36. cxd6 {[%clk 0:00:25]}  Qxd6 {[%clk 0:01:19]} 37. Qh4 {[%clk 0:00:25]}  Qg6 {[%clk 0:01:18]} 38. Qg4+ {[%clk 0:00:19]}  Qxg4 {[%clk 0:01:18]} 39. hxg4+ {[%clk 0:00:19]}  Ke6 {[%clk 0:01:18]} 40. Kh3 {[%clk 0:00:19]}  Kd5 {[%clk 0:01:00]} 41. g3 {[%clk 0:00:14]}  fxg3 {[%clk 0:00:56]} 42. Kxg3 {[%clk 0:00:14]}  Rc4 {[%clk 0:00:57]} 43. Rxc4 {[%clk 0:00:06]}  Kxc4 {[%clk 0:00:57]} 44. g5 {[%clk 0:00:07]}  Kxb4 {[%clk 0:00:57]} 45. Kg4 {[%clk 0:00:07]}  Kc5 {[%clk 0:00:55]} 46. Kh5 {[%clk 0:00:08]}  b5 {[%clk 0:00:55]} 47. Kh6 {[%clk 0:00:09]}  b4 {[%clk 0:00:56]} 48. Kxh7 {[%clk 0:00:10]}  b3 {[%clk 0:00:57]} 49. g6 {[%clk 0:00:11]}  b2 {[%clk 0:00:57]} 50. g7 {[%clk 0:00:12]}  b1=Q+ {[%clk 0:00:58]} 51. Kh8 {[%clk 0:00:09]}  Qh1+ {[%clk 0:00:58]} 52. Kg8 {[%clk 0:00:09]}  Qxf3 {[%clk 0:00:59]} 0-1


[Site "https://www.chess.com"]

[Event "Titled Tuesday Blitz March 22 Early 2022"]
[White "Bluebaum, Matthias"]
[Black "Lou, Yiping"]
[WhiteFideId "24651516"]
[BlackFideId "8603928"]
[WhiteElo "2550"]
[BlackElo "2412"]
[Result "0-1"]
[Round "06"]
[TimeControl "180+1"]
[Date "2022.03.22"]
[WhiteClock "0:00:31"]
[BlackClock "0:00:16"]

1. b3 {[%clk 0:03:00]}  b5 {[%clk 0:02:56]} 2. e4 {[%clk 0:02:58]}  Bb7 {[%clk 0:02:55]} 3. Bxb5 {[%clk 0:02:57]}  Bxe4 {[%clk 0:02:55]} 4. Nf3 {[%clk 0:02:57]}  Nf6 {[%clk 0:02:50]} 5. O-O {[%clk 0:02:58]}  e6 {[%clk 0:02:50]} 6. Bb2 {[%clk 0:02:57]}  Be7 {[%clk 0:02:47]} 7. Re1 {[%clk 0:02:56]}  Bb7 {[%clk 0:02:45]} 8. d4 {[%clk 0:02:55]}  O-O {[%clk 0:02:45]} 9. Bd3 {[%clk 0:02:55]}  d6 {[%clk 0:02:43]} 10. c4 {[%clk 0:02:55]}  Nbd7 {[%clk 0:02:43]} 11. Nc3 {[%clk 0:02:55]}  Re8 {[%clk 0:02:43]} 12. Qe2 {[%clk 0:02:51]}  Bf8 {[%clk 0:02:42]} 13. Ne4 {[%clk 0:02:49]}  a5 {[%clk 0:02:33]} 14. Rad1 {[%clk 0:02:44]}  a4 {[%clk 0:02:28]} 15. Nxf6+ {[%clk 0:02:43]}  Nxf6 {[%clk 0:02:27]} 16. b4 {[%clk 0:02:41]}  g6 {[%clk 0:02:16]} 17. a3 {[%clk 0:02:41]}  Bg7 {[%clk 0:02:16]} 18. Nd2 {[%clk 0:02:32]}  Nh5 {[%clk 0:02:13]} 19. Be4 {[%clk 0:02:25]}  Qc8 {[%clk 0:01:59]} 20. Qf3 {[%clk 0:02:23]}  Bxe4 {[%clk 0:01:46]} 21. Nxe4 {[%clk 0:02:23]}  Qa6 {[%clk 0:01:39]} 22. g4 {[%clk 0:02:18]}  f5 {[%clk 0:01:33]} 23. gxh5 {[%clk 0:02:13]}  fxe4 {[%clk 0:01:31]} 24. Qxe4 {[%clk 0:02:14]}  Qxc4 {[%clk 0:01:12]} 25. hxg6 {[%clk 0:02:11]}  hxg6 {[%clk 0:01:10]} 26. Qxg6 {[%clk 0:02:12]}  Qd5 {[%clk 0:01:11]} 27. Rd3 {[%clk 0:02:07]}  Qf5 {[%clk 0:01:06]} 28. Qg2 {[%clk 0:02:04]}  Qxd3 {[%clk 0:01:02]} 29. h4 {[%clk 0:01:40]}  Qf5 {[%clk 0:00:57]} 30. Re4 {[%clk 0:01:32]}  d5 {[%clk 0:00:53]} 31. Rg4 {[%clk 0:01:31]}  Kh8 {[%clk 0:00:37]} 32. Bc1 {[%clk 0:01:02]}  Bf6 {[%clk 0:00:32]} 33. Bg5 {[%clk 0:00:36]}  Bxg5 {[%clk 0:00:27]} 34. hxg5 {[%clk 0:00:37]}  Kg7 {[%clk 0:00:25]} 35. Qg3 {[%clk 0:00:38]}  e5 {[%clk 0:00:21]} 36. g6 {[%clk 0:00:37]}  Ra6 {[%clk 0:00:17]} 37. Rg5 {[%clk 0:00:31]}  Qxg5 {[%clk 0:00:16]} 0-1


[Site "https://www.chess.com"]

[Event "Titled Tuesday Blitz March 22 Early 2022"]
[White "Chigaev, Maksim"]
[Black "Karthikeyan, Murali"]
[WhiteFideId "4108116"]
[BlackFideId "5074452"]
[WhiteElo "2502"]
[BlackElo "2579"]
[Result "1-0"]
[Round "06"]
[TimeControl "180+1"]
[Date "2022.03.22"]
[WhiteClock "0:00:31"]
[BlackClock "0:00:42"]

1. d4 {[%clk 0:03:00]}  Nf6 {[%clk 0:02:57]} 2. c4 {[%clk 0:03:01]}  e6 {[%clk 0:02:49]} 3. Nf3 {[%clk 0:03:00]}  Nc6 {[%clk 0:02:48]} 4. g3 {[%clk 0:02:58]}  Bb4+ {[%clk 0:02:48]} 5. Bd2 {[%clk 0:02:55]}  Qe7 {[%clk 0:02:48]} 6. Bg2 {[%clk 0:02:55]}  Bxd2+ {[%clk 0:02:48]} 7. Qxd2 {[%clk 0:02:54]}  Ne4 {[%clk 0:02:48]} 8. Qc2 {[%clk 0:02:54]}  Qb4+ {[%clk 0:02:48]} 9. Nbd2 {[%clk 0:02:50]}  Nxd2 {[%clk 0:02:48]} 10. Qxd2 {[%clk 0:02:51]}  Qxc4 {[%clk 0:02:47]} 11. O-O {[%clk 0:02:52]}  O-O {[%clk 0:02:36]} 12. Rac1 {[%clk 0:02:34]}  Qxa2 {[%clk 0:02:14]} 13. e4 {[%clk 0:02:33]}  d5 {[%clk 0:01:41]} 14. e5 {[%clk 0:02:34]}  Qa5 {[%clk 0:01:40]} 15. Qe3 {[%clk 0:02:26]}  Bd7 {[%clk 0:01:32]} 16. h4 {[%clk 0:02:26]}  Rac8 {[%clk 0:01:29]} 17. h5 {[%clk 0:02:14]}  h6 {[%clk 0:01:29]} 18. g4 {[%clk 0:02:06]}  Qb6 {[%clk 0:01:13]} 19. g5 {[%clk 0:01:52]}  hxg5 {[%clk 0:01:10]} 20. Qxg5 {[%clk 0:01:53]}  f6 {[%clk 0:01:08]} 21. Qg4 {[%clk 0:01:35]}  fxe5 {[%clk 0:00:50]} 22. h6 {[%clk 0:01:26]}  Rf7 {[%clk 0:00:42]} 23. Qg6 {[%clk 0:00:31]} 1-0


[Site "https://www.chess.com"]

[Event "Titled Tuesday Blitz March 22 Early 2022"]
[White "Ciolacu, Alessia-Mihaela"]
[Black "Williams, Simon K"]
[WhiteFideId "1252640"]
[BlackFideId "404454"]
[WhiteElo "1777"]
[BlackElo "2468"]
[Result "0-1"]
[Round "06"]
[TimeControl "180+1"]
[Date "2022.03.22"]
[WhiteClock "0:01:23"]
[BlackClock "0:00:58"]

1. Nf3 {[%clk 0:03:00]}  f5 {[%clk 0:02:59]} 2. d4 {[%clk 0:02:58]}  e6 {[%clk 0:02:59]} 3. Nc3 {[%clk 0:02:58]}  Nf6 {[%clk 0:02:57]} 4. Bg5 {[%clk 0:02:58]}  Bb4 {[%clk 0:02:56]} 5. Nd2 {[%clk 0:02:52]}  d5 {[%clk 0:02:51]} 6. e3 {[%clk 0:02:46]}  O-O {[%clk 0:02:51]} 7. Bd3 {[%clk 0:02:43]}  c5 {[%clk 0:02:49]} 8. dxc5 {[%clk 0:02:36]}  Bxc5 {[%clk 0:02:48]} 9. Qf3 {[%clk 0:02:31]}  Nc6 {[%clk 0:02:45]} 10. Qh3 {[%clk 0:02:28]}  Ne5 {[%clk 0:02:37]} 11. Be2 {[%clk 0:02:25]}  h6 {[%clk 0:02:32]} 12. Bf4 {[%clk 0:02:22]}  Ng6 {[%clk 0:02:23]} 13. g4 {[%clk 0:02:22]}  Nxf4 {[%clk 0:02:22]} 14. exf4 {[%clk 0:02:21]}  fxg4 {[%clk 0:02:09]} 15. Bxg4 {[%clk 0:02:22]}  Nxg4 {[%clk 0:02:09]} 16. Qxg4 {[%clk 0:02:23]}  e5 {[%clk 0:02:09]} 17. Qg2 {[%clk 0:02:17]}  Rxf4 {[%clk 0:02:02]} 18. O-O-O {[%clk 0:02:14]}  Rxf2 {[%clk 0:02:01]} 19. Qxd5+ {[%clk 0:02:12]}  Qxd5 {[%clk 0:02:00]} 20. Nxd5 {[%clk 0:02:12]}  Bf5 {[%clk 0:01:50]} 21. Rdf1 {[%clk 0:02:11]}  Rd8 {[%clk 0:01:43]} 22. Rxf2 {[%clk 0:02:08]}  Bxf2 {[%clk 0:01:43]} 23. Ne7+ {[%clk 0:02:08]}  Kh7 {[%clk 0:01:37]} 24. Nxf5 {[%clk 0:02:09]}  g6 {[%clk 0:01:34]} 25. Rf1 {[%clk 0:02:10]}  gxf5 {[%clk 0:01:34]} 26. Rxf2 {[%clk 0:02:09]}  Kg6 {[%clk 0:01:34]} 27. Kd1 {[%clk 0:02:10]}  f4 {[%clk 0:01:33]} 28. Ke2 {[%clk 0:02:08]}  Kf5 {[%clk 0:01:33]} 29. Kf3 {[%clk 0:02:06]}  Rd4 {[%clk 0:01:30]} 30. Re2 {[%clk 0:02:04]}  h5 {[%clk 0:01:26]} 31. Ne4 {[%clk 0:02:04]}  Rd1 {[%clk 0:01:26]} 32. Rd2 {[%clk 0:01:58]}  Rf1+ {[%clk 0:01:26]} 33. Kg2 {[%clk 0:01:58]}  Rb1 {[%clk 0:01:24]} 34. Nd6+ {[%clk 0:01:58]}  Ke6 {[%clk 0:01:20]} 35. b3 {[%clk 0:01:57]}  Re1 {[%clk 0:01:18]} 36. Kf2 {[%clk 0:01:55]}  Rh1 {[%clk 0:01:17]} 37. Kf3 {[%clk 0:01:53]}  Re1 {[%clk 0:01:16]} 38. Nxb7 {[%clk 0:01:51]}  Re3+ {[%clk 0:01:13]} 39. Kf2 {[%clk 0:01:51]}  e4 {[%clk 0:01:12]} 40. Nd6 {[%clk 0:01:35]}  h4 {[%clk 0:01:03]} 41. Nc4 {[%clk 0:01:28]}  Rh3 {[%clk 0:01:00]} 42. Kg2 {[%clk 0:01:28]}  Rc3 {[%clk 0:00:59]} 43. Re2 {[%clk 0:01:24]}  f3+ {[%clk 0:00:58]} 44. Kf2 {[%clk 0:01:25]}  fxe2 {[%clk 0:00:58]} 45. Kxe2 {[%clk 0:01:25]}  Rxc2+ {[%clk 0:00:58]} 46. Ke3 {[%clk 0:01:23]}  Rxh2 {[%clk 0:00:58]} 0-1


[Site "https://www.chess.com"]

[Event "Titled Tuesday Blitz March 22 Early 2022"]
[White "Demchenko, Anton"]
[Black "Perez Gormaz, Matias"]
[WhiteFideId "4160258"]
[BlackFideId "3406342"]
[WhiteElo "2539"]
[BlackElo "2327"]
[Result "1-0"]
[Round "06"]
[TimeControl "180+1"]
[Date "2022.03.22"]
[WhiteClock "0:00:08"]
[BlackClock "0:00:05"]

1. e4 {[%clk 0:03:00]}  e5 {[%clk 0:02:59]} 2. Nf3 {[%clk 0:02:53]}  Nc6 {[%clk 0:03:00]} 3. Bc4 {[%clk 0:02:53]}  Nf6 {[%clk 0:02:58]} 4. d3 {[%clk 0:02:53]}  h6 {[%clk 0:02:56]} 5. a4 {[%clk 0:02:50]}  Bc5 {[%clk 0:02:46]} 6. c3 {[%clk 0:02:46]}  a6 {[%clk 0:02:45]} 7. O-O {[%clk 0:02:44]}  d6 {[%clk 0:02:45]} 8. Re1 {[%clk 0:02:41]}  Ba7 {[%clk 0:02:43]} 9. b4 {[%clk 0:02:40]}  O-O {[%clk 0:02:42]} 10. h3 {[%clk 0:02:41]}  Be6 {[%clk 0:02:32]} 11. Bxe6 {[%clk 0:02:31]}  fxe6 {[%clk 0:02:31]} 12. Be3 {[%clk 0:02:32]}  Bxe3 {[%clk 0:02:27]} 13. fxe3 {[%clk 0:02:29]}  d5 {[%clk 0:02:13]} 14. Nbd2 {[%clk 0:02:30]}  b5 {[%clk 0:01:55]} 15. Qb3 {[%clk 0:02:22]}  Qd6 {[%clk 0:01:53]} 16. Qa2 {[%clk 0:02:05]}  Kh7 {[%clk 0:01:48]} 17. Qc2 {[%clk 0:01:58]}  Kh8 {[%clk 0:01:46]} 18. d4 {[%clk 0:01:49]}  Rfe8 {[%clk 0:01:27]} 19. exd5 {[%clk 0:01:05]}  exd5 {[%clk 0:01:25]} 20. Qf5 {[%clk 0:00:54]}  e4 {[%clk 0:01:22]} 21. Nh4 {[%clk 0:00:36]}  Ne7 {[%clk 0:01:20]} 22. Qf2 {[%clk 0:00:36]}  Rf8 {[%clk 0:01:13]} 23. Nf5 {[%clk 0:00:29]}  Nxf5 {[%clk 0:01:08]} 24. Qxf5 {[%clk 0:00:30]}  Nh7 {[%clk 0:01:04]} 25. Qg4 {[%clk 0:00:23]}  Nf6 {[%clk 0:00:55]} 26. Qh4 {[%clk 0:00:23]}  Kh7 {[%clk 0:00:50]} 27. Nf1 {[%clk 0:00:21]}  Nd7 {[%clk 0:00:42]} 28. axb5 {[%clk 0:00:10]}  axb5 {[%clk 0:00:42]} 29. Rxa8 {[%clk 0:00:10]}  Rxa8 {[%clk 0:00:43]} 30. Qg4 {[%clk 0:00:10]}  Rf8 {[%clk 0:00:32]} 31. Ng3 {[%clk 0:00:08]}  Nb6 {[%clk 0:00:23]} 32. Rf1 {[%clk 0:00:07]}  Rxf1+ {[%clk 0:00:23]} 33. Nxf1 {[%clk 0:00:08]}  Qg6 {[%clk 0:00:20]} 34. Qf4 {[%clk 0:00:07]}  c6 {[%clk 0:00:18]} 35. Ng3 {[%clk 0:00:07]}  Nc4 {[%clk 0:00:18]} 36. Nf5 {[%clk 0:00:06]}  Qf6 {[%clk 0:00:12]} 37. g4 {[%clk 0:00:07]}  Qf7 {[%clk 0:00:06]} 38. Kh2 {[%clk 0:00:05]}  Qa7 {[%clk 0:00:04]} 39. Kg3 {[%clk 0:00:05]}  Qa1 {[%clk 0:00:03]} 40. Qf2 {[%clk 0:00:03]}  Qc1 {[%clk 0:00:03]} 41. h4 {[%clk 0:00:03]}  g6 {[%clk 0:00:03]} 42. Ne7 {[%clk 0:00:02]}  Qxe3+ {[%clk 0:00:04]} 43. Qxe3 {[%clk 0:00:02]}  Nxe3 {[%clk 0:00:05]} 44. Nxc6 {[%clk 0:00:03]}  Nd1 {[%clk 0:00:05]} 45. Na7 {[%clk 0:00:02]}  Nxc3 {[%clk 0:00:06]} 46. Kf4 {[%clk 0:00:03]}  Kg7 {[%clk 0:00:05]} 47. Ke3 {[%clk 0:00:02]}  Kf6 {[%clk 0:00:05]} 48. Nc6 {[%clk 0:00:02]}  h5 {[%clk 0:00:05]} 49. g5+ {[%clk 0:00:02]}  Kf5 {[%clk 0:00:05]} 50. Ne7+ {[%clk 0:00:03]}  Kg4 {[%clk 0:00:05]} 51. Nxg6 {[%clk 0:00:04]}  Na2 {[%clk 0:00:04]} 52. Ne5+ {[%clk 0:00:04]}  Kf5 {[%clk 0:00:05]} 53. g6 {[%clk 0:00:05]}  Kf6 {[%clk 0:00:05]} 54. Nc6 {[%clk 0:00:04]}  Kxg6 {[%clk 0:00:05]} 55. Ne7+ {[%clk 0:00:04]}  Kh6 {[%clk 0:00:05]} 56. Nxd5 {[%clk 0:00:05]}  Kg6 {[%clk 0:00:04]} 57. Kxe4 {[%clk 0:00:06]}  Kf7 {[%clk 0:00:04]} 58. Ke5 {[%clk 0:00:06]}  Kg6 {[%clk 0:00:05]} 59. Kd6 {[%clk 0:00:06]}  Nc1 {[%clk 0:00:05]} 60. Kc5 {[%clk 0:00:07]}  Ne2 {[%clk 0:00:06]} 61. Nc7 {[%clk 0:00:06]}  Kf5 {[%clk 0:00:05]} 62. d5 {[%clk 0:00:07]}  Nc3 {[%clk 0:00:05]} 63. d6 {[%clk 0:00:07]}  Ne4+ {[%clk 0:00:05]} 64. Kc6 {[%clk 0:00:08]}  Kg4 {[%clk 0:00:05]} 65. d7 {[%clk 0:00:08]} 1-0


[Site "https://www.chess.com"]

[Event "Titled Tuesday Blitz March 22 Early 2022"]
[White "Devaev, Alexander"]
[Black "Sarkar, Justin"]
[WhiteFideId "4169395"]
[BlackFideId "2010011"]
[WhiteElo "2185"]
[BlackElo "2038"]
[Result "1-0"]
[Round "06"]
[TimeControl "180+1"]
[Date "2022.03.22"]
[WhiteClock "0:00:22"]
[BlackClock "0:00:01"]

1. d4 {[%clk 0:02:50]}  Nf6 {[%clk 0:02:55]} 2. c4 {[%clk 0:02:50]}  g6 {[%clk 0:02:51]} 3. Nc3 {[%clk 0:02:50]}  d5 {[%clk 0:02:50]} 4. Nf3 {[%clk 0:02:38]}  Bg7 {[%clk 0:02:49]} 5. Bg5 {[%clk 0:02:39]}  Ne4 {[%clk 0:02:42]} 6. cxd5 {[%clk 0:02:38]}  Nxg5 {[%clk 0:02:38]} 7. Nxg5 {[%clk 0:02:39]}  e6 {[%clk 0:02:34]} 8. Nf3 {[%clk 0:02:40]}  exd5 {[%clk 0:02:33]} 9. e3 {[%clk 0:02:40]}  a5 {[%clk 0:02:32]} 10. Bd3 {[%clk 0:02:38]}  O-O {[%clk 0:02:30]} 11. O-O {[%clk 0:02:39]}  c6 {[%clk 0:02:28]} 12. h3 {[%clk 0:02:38]}  Nd7 {[%clk 0:02:23]} 13. Rc1 {[%clk 0:02:38]}  Nb6 {[%clk 0:02:16]} 14. Re1 {[%clk 0:02:01]}  Be6 {[%clk 0:02:08]} 15. Qb3 {[%clk 0:01:55]}  a4 {[%clk 0:01:56]} 16. Qc2 {[%clk 0:01:52]}  a3 {[%clk 0:01:46]} 17. b3 {[%clk 0:01:52]}  Re8 {[%clk 0:01:43]} 18. Nb1 {[%clk 0:01:29]}  Nc8 {[%clk 0:01:29]} 19. Rcd1 {[%clk 0:01:22]}  Nd6 {[%clk 0:01:24]} 20. Qc1 {[%clk 0:01:21]}  Qa5 {[%clk 0:01:21]} 21. Qd2 {[%clk 0:01:10]}  Qxd2 {[%clk 0:01:13]} 22. Rxd2 {[%clk 0:01:11]}  Ne4 {[%clk 0:01:09]} 23. Rc2 {[%clk 0:01:10]}  f5 {[%clk 0:01:03]} 24. Rec1 {[%clk 0:01:08]}  Bf6 {[%clk 0:00:45]} 25. Nh2 {[%clk 0:00:50]}  Be7 {[%clk 0:00:32]} 26. Nf1 {[%clk 0:00:49]}  Bb4 {[%clk 0:00:26]} 27. Nbd2 {[%clk 0:00:43]}  g5 {[%clk 0:00:20]} 28. Nf3 {[%clk 0:00:43]}  h6 {[%clk 0:00:13]} 29. Ne5 {[%clk 0:00:43]}  Bd6 {[%clk 0:00:12]} 30. f3 {[%clk 0:00:39]}  Nf6 {[%clk 0:00:05]} 31. Ng3 {[%clk 0:00:31]}  Bxe5 {[%clk 0:00:04]} 32. dxe5 {[%clk 0:00:31]}  Nd7 {[%clk 0:00:03]} 33. f4 {[%clk 0:00:27]}  Rf8 {[%clk 0:00:02]} 34. Ne2 {[%clk 0:00:23]}  Rf7 {[%clk 0:00:01]} 35. Nd4 {[%clk 0:00:21]}  Re8 {[%clk 0:00:01]} 36. b4 {[%clk 0:00:22]}  Nf8 {[%clk 0:00:01]} 37. g3 {[%clk 0:00:22]} 1-0


[Site "https://www.chess.com"]

[Event "Titled Tuesday Blitz March 22 Early 2022"]
[White "Dixit, Nikhil"]
[Black "Voit, Daria"]
[WhiteFideId "5059534"]
[BlackFideId "4182146"]
[WhiteElo "2223"]
[BlackElo "2323"]
[Result "1/2-1/2"]
[Round "06"]
[TimeControl "180+1"]
[Date "2022.03.22"]
[WhiteClock "0:00:24"]
[BlackClock "0:00:13"]

1. e4 {[%clk 0:03:00]}  c6 {[%clk 0:02:59]} 2. Nc3 {[%clk 0:02:54]}  d5 {[%clk 0:03:00]} 3. Qf3 {[%clk 0:02:50]}  d4 {[%clk 0:02:54]} 4. Nce2 {[%clk 0:02:29]}  e5 {[%clk 0:02:51]} 5. Qg3 {[%clk 0:02:25]}  f6 {[%clk 0:02:43]} 6. d3 {[%clk 0:02:18]}  Be6 {[%clk 0:02:35]} 7. f4 {[%clk 0:02:18]}  Nd7 {[%clk 0:02:35]} 8. Nf3 {[%clk 0:02:15]}  Qa5+ {[%clk 0:02:26]} 9. Bd2 {[%clk 0:02:12]}  Qb5 {[%clk 0:02:25]} 10. b3 {[%clk 0:02:03]}  O-O-O {[%clk 0:02:22]} 11. fxe5 {[%clk 0:02:02]}  fxe5 {[%clk 0:02:22]} 12. Ng5 {[%clk 0:02:01]}  Re8 {[%clk 0:02:20]} 13. a4 {[%clk 0:01:40]}  Qc5 {[%clk 0:02:16]} 14. Nxe6 {[%clk 0:01:39]}  Rxe6 {[%clk 0:02:15]} 15. Qh3 {[%clk 0:01:39]}  Rf6 {[%clk 0:01:53]} 16. Ng3 {[%clk 0:01:26]}  Qxc2 {[%clk 0:01:47]} 17. Nh5 {[%clk 0:01:26]}  Rg6 {[%clk 0:01:40]} 18. Be2 {[%clk 0:01:19]}  Nf6 {[%clk 0:01:30]} 19. Nxf6 {[%clk 0:01:17]}  Rxf6 {[%clk 0:01:27]} 20. Bg4 {[%clk 0:01:15]}  Kc7 {[%clk 0:00:46]} 21. Bxd7 {[%clk 0:01:07]}  Rf2 {[%clk 0:00:45]} 22. Rd1 {[%clk 0:00:55]}  Rxd2 {[%clk 0:00:41]} 23. Rxd2 {[%clk 0:00:53]}  Bb4 {[%clk 0:00:42]} 24. O-O {[%clk 0:00:53]}  Qxd2 {[%clk 0:00:35]} 25. Be6 {[%clk 0:00:48]}  Rf8 {[%clk 0:00:30]} 26. Rxf8 {[%clk 0:00:43]}  Bxf8 {[%clk 0:00:31]} 27. Qf5 {[%clk 0:00:44]}  Qe1+ {[%clk 0:00:18]} 28. Qf1 {[%clk 0:00:41]}  Qxf1+ {[%clk 0:00:18]} 29. Kxf1 {[%clk 0:00:42]}  Kd6 {[%clk 0:00:16]} 30. Bg8 {[%clk 0:00:41]}  h6 {[%clk 0:00:16]} 31. Ke2 {[%clk 0:00:41]}  Kc5 {[%clk 0:00:16]} 32. Kd1 {[%clk 0:00:40]}  Kb4 {[%clk 0:00:16]} 33. Kc2 {[%clk 0:00:41]}  Ka3 {[%clk 0:00:17]} 34. Be6 {[%clk 0:00:40]}  b5 {[%clk 0:00:17]} 35. axb5 {[%clk 0:00:36]}  cxb5 {[%clk 0:00:18]} 36. Bd7 {[%clk 0:00:37]}  a6 {[%clk 0:00:18]} 37. Be8 {[%clk 0:00:35]}  Be7 {[%clk 0:00:18]} 38. Bd7 {[%clk 0:00:35]}  Bf6 {[%clk 0:00:18]} 39. Be8 {[%clk 0:00:35]}  Bg5 {[%clk 0:00:17]} 40. Bd7 {[%clk 0:00:35]}  Bf4 {[%clk 0:00:18]} 41. h3 {[%clk 0:00:36]}  Bg3 {[%clk 0:00:18]} 42. Bc8 {[%clk 0:00:36]}  a5 {[%clk 0:00:18]} 43. Bd7 {[%clk 0:00:35]}  Kb4 {[%clk 0:00:14]} 44. Be8 {[%clk 0:00:31]}  Be1 {[%clk 0:00:13]} 45. Bd7 {[%clk 0:00:31]}  Bc3 {[%clk 0:00:09]} 46. Be8 {[%clk 0:00:31]}  a4 {[%clk 0:00:09]} 47. bxa4 {[%clk 0:00:31]}  Kxa4 {[%clk 0:00:10]} 48. Bd7 {[%clk 0:00:30]}  Kb4 {[%clk 0:00:11]} 49. Be8 {[%clk 0:00:30]}  Be1 {[%clk 0:00:11]} 50. Bd7 {[%clk 0:00:29]}  Bh4 {[%clk 0:00:12]} 51. Be8 {[%clk 0:00:30]}  Be7 {[%clk 0:00:13]} 52. Bd7 {[%clk 0:00:30]}  Ka5 {[%clk 0:00:13]} 53. Be8 {[%clk 0:00:30]}  b4 {[%clk 0:00:14]} 54. Bd7 {[%clk 0:00:28]}  Kb6 {[%clk 0:00:14]} 55. Be6 {[%clk 0:00:25]}  Kc5 {[%clk 0:00:14]} 56. Bb3 {[%clk 0:00:25]}  Kd6 {[%clk 0:00:14]} 57. Kd1 {[%clk 0:00:26]}  Bd8 {[%clk 0:00:15]} 58. Ke2 {[%clk 0:00:27]}  Ke7 {[%clk 0:00:15]} 59. Kf3 {[%clk 0:00:28]}  Kf6 {[%clk 0:00:16]} 60. Kg4 {[%clk 0:00:26]}  Be7 {[%clk 0:00:14]} 61. Kf3 {[%clk 0:00:24]}  Kg5 {[%clk 0:00:13]} 1/2-1/2


[Site "https://www.chess.com"]